bitfinex-derivatives/quotes_BNBF0:USTF0_20250904
["timestamp","ask_amount","ask_price","bid_price","bid_amount"]
[1757001429107,0.72410497,844.72,843.96,0.79729382]
[1757001429310,0.72410497,844.71,843.96,0.79729382]
[1757001429513,0.79715483,844.83,843.96,0.79729382]
[1757001429910,0.72443294,844.82,843.96,0.79729382]
[1757001430214,0.72443294,844.82,843.97,0.79729382]
[1757001430410,0.72443294,844.81,843.97,0.79729382]
[1757001430713,0.72443294,844.8,843.97,0.79729382]
[1757001431010,0.72443294,844.79,843.97,0.79729382]
[1757001431213,0.72443294,844.78,843.98,0.79729382]
[1757001431408,0.72443294,844.77,843.98,0.79729382]
[1757001431608,0.72443294,844.76,843.98,0.79729382]
[1757001431809,0.72443294,844.75,843.98,0.79729382]
[1757001432113,0.72443294,844.74,843.98,0.79729382]
[1757001432407,0.79715483,844.83,843.98,0.79729382]
[1757001432408,0.72443294,844.73,843.98,0.79729382]
[1757001432613,0.72443294,844.72,843.98,0.79729382]
[1757001432813,0.72443294,844.71,844.01,0.79729382]
[1757001433007,0.72443294,844.7,844.01,0.79729382]
[1757001433213,0.72443294,844.69,844.01,0.79729382]
[1757001433410,0.72443294,844.68,844.01,0.79729382]
[1757001433710,0.79715483,844.79,844.01,0.79729382]
[1757001433913,0.72514875,844.78,844.01,0.79729382]
[1757001434208,0.72514875,844.78,844.0,0.79729382]
[1757001434514,0.72514875,844.77,844.01,0.79729382]
[1757001434714,0.72514875,844.76,844.01,0.79729382]
[1757001434912,0.72514875,844.75,844.01,0.79729382]
[1757001435212,0.72514875,844.74,844.01,0.79729382]
[1757001435412,0.72514875,844.73,844.01,0.79729382]
[1757001435614,0.72514875,844.72,844.01,0.79729382]
[1757001435811,0.72514875,844.71,844.01,0.79729382]
[1757001436011,0.72514875,844.7,844.01,0.79729382]
[1757001436213,0.72514875,844.69,844.01,0.79729382]
[1757001436512,0.72514875,844.68,844.01,0.79729382]
[1757001436714,0.72514875,844.67,844.02,0.79729382]
[1757001436914,0.79715483,844.79,844.02,0.79729382]
[1757001437119,0.72544647,844.78,844.05,0.79729382]
[1757001437317,0.72544647,844.77,844.06,0.79729382]
[1757001437516,0.72544647,844.76,844.06,0.79729382]
[1757001437714,0.72544647,844.75,844.06,0.79729382]
[1757001438015,0.72544647,844.74,844.06,0.79729382]
[1757001438213,0.72544647,844.73,844.06,0.79729382]
[1757001438512,0.72544647,844.72,844.06,0.79729382]
[1757001438712,0.72544647,844.72,843.9,1.0563581]
[1757001438713,0.72544647,844.71,844.04,0.79729382]
[1757001438917,0.79715483,844.86,844.04,0.79729382]
[1757001439115,0.72563589,844.85,844.04,0.79729382]
[1757001439315,1.52279072,844.85,844.05,0.79729382]
[1757001439517,0.72563589,844.84,844.05,0.79729382]
[1757001442314,1.52279072,844.84,844.06,0.79729382]
[1757001442514,0.72563589,844.83,844.06,0.79729382]
[1757001443119,0.72595519,844.82,844.06,0.79729382]
[1757001443319,0.72595519,844.81,844.06,0.79729382]
[1757001443520,0.72595519,844.8,844.06,0.79729382]
[1757001443720,0.72595519,844.79,844.06,0.79729382]
[1757001444016,0.72595519,844.79,843.68,0.20602749]
[1757001444017,0.72595519,844.78,844.07,0.79729382]
[1757001444321,0.72595519,844.77,844.08,0.79729382]
[1757001444616,0.72595519,844.76,844.08,0.79729382]
[1757001444816,0.72595519,844.75,844.08,0.79729382]
[1757001445020,0.72595519,844.74,844.08,0.79729382]
[1757001445216,0.72595519,844.73,844.07,0.79729382]
[1757001445517,0.72595519,844.72,844.07,0.79729382]
[1757001445716,0.72595519,844.71,844.07,0.79729382]
[1757001445918,0.72595519,844.7,844.07,0.79729382]
[1757001446121,0.72595519,844.69,844.08,0.79729382]
[1757001446322,0.72595519,844.68,844.08,0.79729382]
[1757001446519,0.72595519,844.67,844.08,0.79729382]
[1757001446821,0.79715483,844.81,844.09,0.79729382]
[1757001447020,0.72636984,844.8,844.08,0.79729382]
[1757001447223,0.72636984,844.8,844.09,0.79729382]
[1757001448323,1.52352467,844.8,844.1,0.79729382]
[1757001448623,0.79715483,844.77,844.12,0.79729382]
[1757001448920,0.72636984,844.76,844.12,0.79729382]
[1757001449623,1.52352467,844.76,844.12,0.79729382]
[1757001449821,0.72636984,844.75,844.12,0.79729382]
[1757001450316,0.72636984,844.75,844.13,0.79729382]
[1757001450817,0.79715483,844.76,844.13,0.79729382]
[1757001451220,1.52372939,844.75,844.13,0.79729382]
[1757001451519,0.72657456,844.75,844.13,0.79729382]
[1757001451722,0.79715483,844.76,844.13,0.79729382]
[1757001451923,0.72663734,844.75,844.13,0.79729382]
[1757001452624,0.79715483,844.76,844.13,0.79729382]
[1757001453522,0.72668644,844.75,844.13,0.79729382]
[1757001454322,0.72668644,844.74,844.14,0.79729382]
[1757001454626,0.72668644,844.73,844.12,0.79729382]
[1757001454824,0.79715483,844.79,844.12,0.79729382]
[1757001454825,0.72668644,844.72,844.12,0.79729382]
[1757001455026,0.72668644,844.71,844.12,0.79729382]
[1757001455324,0.72668644,844.7,844.13,0.79729382]
[1757001455527,0.72668644,844.69,844.13,0.79729382]
[1757001455728,0.72668644,844.68,844.13,0.79729382]
[1757001455928,0.72668644,844.67,844.13,0.79729382]
[1757001456129,0.72668644,844.66,844.13,0.79729382]
[1757001456428,0.72668644,844.65,844.13,0.79729382]
[1757001456728,0.79715483,844.78,844.13,0.79729382]
[1757001456927,0.7266769,844.77,844.13,0.79729382]
[1757001459629,0.72668094,844.76,844.13,0.79729382]
[1757001459828,0.72668094,844.75,844.13,0.79729382]
[1757001460030,0.79715483,844.78,844.13,0.79729382]
[1757001460031,0.72668094,844.74,844.13,0.79729382]
[1757001460329,0.72668094,844.73,844.13,0.79729382]
[1757001460529,0.72668094,844.72,844.13,0.79729382]
[1757001460729,0.72668094,844.71,844.13,0.79729382]
[1757001461024,0.72668094,844.7,844.13,0.79729382]
[1757001461225,0.72668094,844.69,844.14,0.79729382]
[1757001461430,0.72668094,844.68,844.14,0.79729382]
[1757001461627,0.72668094,844.67,844.14,0.79729382]
[1757001461830,0.72668094,844.66,844.14,0.79729382]
[1757001462031,0.72668094,844.65,844.14,0.79729382]
[1757001462331,0.79715483,844.77,844.14,0.79729382]
[1757001462628,0.72674047,844.76,844.14,0.79729382]
[1757001463527,1.5238953,844.76,844.14,0.79729382]
[1757001463733,0.72674047,844.75,844.14,0.79729382]
[1757001463934,0.79715483,844.73,844.16,0.79729382]
[1757001464134,0.72674047,844.72,844.16,0.79729382]
[1757001464334,0.72674047,844.71,844.16,0.79729382]
[1757001464632,0.72674047,844.7,844.16,0.79729382]
[1757001464831,0.72674047,844.69,844.16,0.79729382]
[1757001465130,0.72674047,844.68,844.16,0.79729382]
[1757001465335,0.72674047,844.67,844.16,0.79729382]
[1757001465636,0.72674047,844.66,844.16,0.79729382]
[1757001465836,0.72674047,844.65,844.16,0.79729382]
[1757001466135,0.72674047,844.64,844.16,0.79729382]
[1757001466331,0.79715483,844.74,844.16,0.79729382]
[1757001466332,0.72674047,844.63,844.16,0.79729382]
[1757001466536,0.79715483,844.74,844.16,0.79729382]
[1757001466836,0.72666783,844.73,844.16,0.79729382]
[1757001467235,1.52382266,844.73,844.17,0.79729382]
[1757001467435,0.72666783,844.72,844.17,0.79729382]
[1757001467631,0.72666783,844.71,844.17,0.79729382]
[1757001467935,0.72666783,844.7,844.17,0.79729382]
[1757001468132,0.72666783,844.69,844.17,0.79729382]
[1757001468332,0.72666783,844.68,844.17,0.79729382]
[1757001468529,0.79715483,844.73,844.17,0.79729382]
[1757001468530,0.72666783,844.67,844.17,0.79729382]
[1757001468732,0.72666783,844.66,844.17,0.79729382]
[1757001468937,0.72666783,844.65,844.17,0.79729382]
[1757001469231,0.72666783,844.64,844.17,0.79729382]
[1757001469432,0.72666783,844.63,844.17,0.79729382]
[1757001469634,0.72666783,844.62,844.17,0.79729382]
[1757001469835,0.79715483,844.73,844.17,0.79729382]
[1757001470037,0.72687012,844.72,844.17,0.79729382]
[1757001470237,1.52402495,844.72,844.18,0.79729382]
[1757001470534,0.72687012,844.71,844.18,0.79729382]
[1757001472138,1.52402495,844.71,844.19,0.79729382]
[1757001472339,1.52402495,844.7,844.2,0.79729382]
[1757001472632,0.72687012,844.69,844.2,0.79729382]
[1757001473335,1.52402495,844.69,844.2,0.79729382]
[1757001473538,0.72687012,844.68,844.2,0.79729382]
[1757001474039,0.72687012,844.68,844.21,0.79729382]
[1757001475240,1.52402495,844.68,844.21,0.79729382]
[1757001475439,0.72687012,844.67,844.2,0.79729382]
[1757001475643,0.79715483,844.66,844.19,0.79729382]
[1757001475843,0.72687012,844.65,844.19,0.79729382]
[1757001476739,0.72687012,844.64,844.19,0.79729382]
[1757001477038,0.72687012,844.63,844.19,0.79729382]
[1757001477239,0.72687012,844.62,844.19,0.79729382]
[1757001477439,0.72687012,844.61,844.19,0.79729382]
[1757001477740,0.72687012,844.6,844.19,0.79729382]
[1757001477939,0.72687012,844.59,844.19,0.79729382]
[1757001478244,0.72687012,844.58,844.19,0.79729382]
[1757001478440,0.72687012,844.57,844.19,0.79729382]
[1757001478639,0.72687012,844.56,844.19,0.79729382]
[1757001478841,0.79715483,844.66,844.19,0.79729382]
[1757001479143,0.72736897,844.65,844.19,0.79729382]
[1757001479745,0.72736897,844.64,844.19,0.79729382]
[1757001479940,0.72736897,844.63,844.19,0.79729382]
[1757001480140,0.72736897,844.62,844.19,0.79729382]
[1757001480442,0.72736897,844.61,844.18,0.79729382]
[1757001480640,0.72736897,844.6,844.18,0.79729382]
[1757001480840,0.72736897,844.59,844.18,0.79729382]
[1757001481042,0.72736897,844.58,844.18,0.79729382]
[1757001481249,0.72736897,844.57,844.18,0.79729382]
[1757001481443,0.79715483,844.68,844.18,0.79729382]
[1757001481650,0.72738399,844.67,844.18,0.79729382]
[1757001481848,0.72738399,844.66,844.18,0.79729382]
[1757001482049,0.72738399,844.65,844.18,0.79729382]
[1757001482245,0.72738399,844.64,844.18,0.79729382]
[1757001482443,0.72738399,844.63,844.18,0.79729382]
[1757001482643,0.72738399,844.62,844.19,0.79729382]
[1757001482948,0.72738399,844.61,844.18,0.79729382]
[1757001483150,0.72738399,844.6,844.18,0.79729382]
[1757001483348,0.72738399,844.59,844.15,0.79729382]
[1757001483648,0.72738399,844.58,844.15,0.79729382]
[1757001483848,0.79715483,844.73,844.15,0.79729382]
[1757001484048,0.72742025,844.72,844.15,0.79729382]
[1757001484345,1.0574839,844.92,844.15,0.79729382]
[1757001484346,0.20603115,844.59,844.15,0.79729382]
[1757001484746,0.20603115,844.59,844.18,0.79729382]
[1757001485148,0.20603115,844.59,844.14,0.79729382]
[1757001485646,0.20603115,844.59,844.13,0.79729382]
[1757001485847,0.20603115,844.59,844.09,0.79729382]
[1757001486453,0.20603115,844.59,844.08,0.79729382]
[1757001486650,0.20603115,844.59,844.07,0.79729382]
[1757001489350,0.93352398,844.59,844.07,0.79729382]
[1757001489653,0.72749283,844.58,844.07,0.79729382]
[1757001489850,0.72749283,844.57,844.07,0.79729382]
[1757001490154,0.72749283,844.56,844.07,0.79729382]
[1757001490353,0.72749283,844.55,844.07,0.79729382]
[1757001490551,0.20603115,844.59,844.07,0.79729382]
[1757001491151,0.20603115,844.59,844.06,0.79729382]
[1757001492253,0.20603115,844.59,844.07,0.79729382]
[1757001493756,0.93347409,844.59,844.07,0.79729382]
[1757001494057,0.72744294,844.58,844.07,0.79729382]
[1757001494257,0.72744294,844.57,844.07,0.79729382]
[1757001494456,0.72744294,844.56,844.07,0.79729382]
[1757001494755,0.72744294,844.55,844.07,0.79729382]
[1757001494956,0.20603115,844.59,844.07,0.79729382]
[1757001495557,0.20603115,844.59,844.08,0.79729382]
[1757001496658,0.20603115,844.59,844.05,0.79729382]
[1757001497454,0.20603115,844.59,844.04,0.79729382]
[1757001499555,0.93311977,844.59,844.04,0.79729382]
[1757001499762,0.72708862,844.58,844.03,0.79729382]
[1757001499961,0.72708862,844.57,844.05,0.79729382]
[1757001500260,0.72708862,844.56,844.05,0.79729382]
[1757001500456,0.72708862,844.55,844.05,0.79729382]
[1757001500655,0.72708862,844.54,844.05,0.79729382]
[1757001500857,0.72708862,844.53,844.05,0.79729382]
[1757001501058,0.72708862,844.52,844.05,0.79729382]
[1757001501257,0.20603115,844.59,844.05,0.79729382]
[1757001502460,0.20603115,844.59,844.0,0.79729382]
[1757001503561,0.93290522,844.59,844.0,0.79729382]
[1757001503759,0.72687407,844.58,844.0,0.79729382]
[1757001504064,0.20603115,844.59,843.82,1.0563581]
[1757001504065,0.72687407,844.57,843.99,0.79729382]
[1757001504265,0.72687407,844.56,843.99,0.79729382]
[1757001504465,0.72687407,844.55,843.99,0.79729382]
[1757001504765,0.72687407,844.54,843.99,0.79729382]
[1757001505062,0.72687407,844.53,843.99,0.79729382]
[1757001505265,0.72687407,844.52,843.99,0.79729382]
[1757001505461,0.72687407,844.51,843.99,0.79729382]
[1757001505759,0.72687407,844.5,843.99,0.79729382]
[1757001505961,0.72687407,844.49,843.98,0.79729382]
[1757001506160,0.72687407,844.48,843.97,0.79729382]
[1757001506364,0.20603115,844.59,843.97,0.79729382]
[1757001507062,1.00318598,844.59,843.98,0.79729382]
[1757001507366,0.72654494,844.58,843.98,0.79729382]
[1757001507566,0.72654494,844.58,843.92,0.79729382]
[1757001507767,0.72654494,844.57,843.85,0.79729382]
[1757001507962,0.72654494,844.56,843.84,0.79729382]
[1757001508263,0.72654494,844.55,843.84,0.79729382]
[1757001508461,0.72654494,844.54,843.84,0.79729382]
[1757001508667,0.72654494,844.53,843.84,0.79729382]
[1757001508866,0.72654494,844.52,843.84,0.79729382]
[1757001509064,0.72654494,844.51,843.84,0.79729382]
[1757001509268,0.72654494,844.5,843.83,0.79729382]
[1757001509467,0.72654494,844.49,843.83,0.79729382]
[1757001509668,0.72654494,844.48,843.83,0.79729382]
[1757001509868,0.72654494,844.47,843.83,0.79729382]
[1757001510064,0.72654494,844.46,843.83,0.79729382]
[1757001510369,0.20603115,844.59,843.82,0.79729382]
[1757001510568,0.20603115,844.59,843.79,0.79729382]
[1757001511265,0.20603115,844.59,843.78,0.79729382]
[1757001513266,0.20603115,844.59,843.77,0.79729382]
[1757001515075,0.20603115,844.59,843.76,0.79729382]
[1757001515274,0.20603115,844.59,843.75,0.79729382]
[1757001516370,0.20603115,844.59,843.77,0.79729382]
[1757001517077,0.20603115,844.59,843.76,0.79729382]
[1757001517876,0.20603115,844.59,843.78,0.79729382]
[1757001519175,0.20603115,844.59,843.77,0.79729382]
[1757001519676,0.20603115,844.59,843.78,0.79729382]
[1757001520277,0.20603115,844.59,843.42,0.20607812]
[1757001520278,0.20603115,844.59,843.8,0.79729382]
[1757001522181,0.20603115,844.59,843.81,0.79729382]
[1757001524982,1.00318598,844.59,843.84,0.79729382]
[1757001525186,0.72587484,844.58,843.84,0.79729382]
[1757001530390,1.52302967,844.58,843.84,0.79729382]
[1757001530596,0.72587484,844.57,843.84,0.79729382]
[1757001530891,1.52302967,844.57,843.85,0.79729382]
[1757001531095,0.72587484,844.56,843.85,0.79729382]
[1757001531495,0.7248769,844.55,843.85,0.79729382]
[1757001531692,0.7248769,844.54,843.85,0.79729382]
[1757001531896,0.7248769,844.53,843.85,0.79729382]
[1757001532097,0.7248769,844.52,843.86,0.79729382]
[1757001532294,0.7248769,844.51,843.86,0.79729382]
[1757001532495,0.7248769,844.5,843.86,0.79729382]
[1757001532692,0.7248769,844.49,843.86,0.79729382]
[1757001532895,0.7248769,844.48,843.86,0.79729382]
[1757001533093,0.79715483,844.56,843.86,0.79729382]
[1757001533094,0.7248769,844.47,843.86,0.79729382]
[1757001533295,0.7248769,844.46,843.86,0.79729382]
[1757001533599,0.79715483,844.56,843.86,0.79729382]
[1757001533600,0.7248769,844.45,843.86,0.79729382]
[1757001533799,0.79715483,844.56,843.86,0.79729382]
[1757001534000,0.7249275,844.55,843.86,0.79729382]
[1757001535597,0.7249275,844.55,843.76,0.79729382]
[1757001535798,0.7249275,844.54,843.76,0.79729382]
[1757001535998,0.7249275,844.53,843.76,0.79729382]
[1757001536201,0.7249275,844.52,843.76,0.79729382]
[1757001536500,0.7249275,844.51,843.76,0.79729382]
[1757001536700,0.7249275,844.5,843.76,0.79729382]
[1757001536999,0.7249275,844.49,843.76,0.79729382]
[1757001537196,0.7249275,844.48,843.77,0.79729382]
[1757001537395,0.20603115,844.59,843.77,0.79729382]
[1757001541207,0.20603115,844.59,843.76,0.79729382]
[1757001541506,0.20603115,844.59,843.77,0.79729382]
[1757001544304,0.20603115,844.59,843.78,0.79729382]
[1757001544707,0.72513616,844.59,843.78,0.79729382]
[1757001544904,0.72513616,844.58,843.78,0.79729382]
[1757001545106,0.72513616,844.57,843.78,0.79729382]
[1757001545307,0.72513616,844.56,843.78,0.79729382]
[1757001545509,0.72513616,844.55,843.83,0.79729382]
[1757001545709,0.79715483,844.59,843.83,0.79729382]
[1757001545910,0.72542071,844.58,843.83,0.79729382]
[1757001546209,1.52257554,844.58,843.83,0.79729382]
[1757001546408,0.72542071,844.57,843.83,0.79729382]
[1757001549113,0.72542071,844.57,843.84,0.79729382]
[1757001550016,0.79715483,844.54,843.86,0.79729382]
[1757001550218,0.72542071,844.53,843.86,0.79729382]
[1757001550418,0.72542071,844.53,843.87,0.79729382]
[1757001550819,1.52257554,844.53,843.87,0.79729382]
[1757001551020,0.79715483,844.51,843.88,0.79729382]
[1757001551315,1.52257554,844.5,843.89,0.79729382]
[1757001551616,0.72542071,844.49,843.89,0.79729382]
[1757001553115,0.72542071,844.49,843.88,0.79729382]
[1757001553416,0.72542071,844.48,843.89,0.79729382]
[1757001553616,0.72542071,844.47,843.89,0.79729382]
[1757001553920,0.72542071,844.46,843.9,0.79729382]
[1757001554121,0.79715483,844.73,843.82,0.79729382]
[1757001554320,0.72519056,844.72,843.87,0.79729382]
[1757001554517,0.72519056,844.71,843.87,0.79729382]
[1757001554719,0.72519056,844.7,843.87,0.79729382]
[1757001554920,0.72519056,844.69,843.87,0.79729382]
[1757001555121,0.72519056,844.68,843.87,0.79729382]
[1757001555319,0.72519056,844.67,843.87,0.79729382]
[1757001555516,0.72519056,844.66,843.87,0.79729382]
[1757001555718,0.72519056,844.65,843.87,0.79729382]
[1757001555918,0.72519056,844.64,843.87,0.79729382]
[1757001556216,0.72519056,844.63,843.87,0.79729382]
[1757001556416,0.72519056,844.62,843.87,0.79729382]
[1757001556619,0.72519056,844.61,843.87,0.79729382]
[1757001556817,0.72519056,844.6,843.87,0.79729382]
[1757001557021,0.72519056,844.59,843.87,0.79729382]
[1757001557319,0.72519056,844.58,843.88,0.79729382]
[1757001557518,0.72519056,844.57,843.88,0.79729382]
[1757001557719,0.72519056,844.56,843.88,0.79729382]
[1757001557917,0.72519056,844.55,843.88,0.79729382]
[1757001558117,0.72519056,844.54,843.88,0.79729382]
[1757001558321,0.72519056,844.53,843.88,0.79729382]
[1757001558515,0.79715483,844.77,843.88,0.79729382]
[1757001558719,0.72540303,844.76,843.88,0.79729382]
[1757001560327,0.72540303,844.75,843.88,0.79729382]
[1757001560618,0.72540303,844.74,843.88,0.79729382]
[1757001560824,0.72540303,844.73,843.88,0.79729382]
[1757001561020,0.72540303,844.72,843.88,0.79729382]
[1757001561222,0.72540303,844.71,843.89,0.79729382]
[1757001561421,0.72540303,844.7,843.89,0.79729382]
[1757001561621,0.72540303,844.69,843.89,0.79729382]
[1757001561825,0.72540303,844.68,843.89,0.79729382]
[1757001562125,0.72540303,844.67,843.9,0.79729382]
[1757001562321,0.72540303,844.66,843.9,0.79729382]
[1757001562620,0.72540303,844.65,843.9,0.79729382]
[1757001562825,0.72540303,844.64,843.89,0.79729382]
[1757001563025,0.72540303,844.63,843.89,0.79729382]
[1757001563321,0.72540303,844.62,843.89,0.79729382]
[1757001563525,0.72540303,844.61,843.89,0.79729382]
[1757001563821,0.72540303,844.6,843.89,0.79729382]
[1757001564025,0.72540303,844.59,843.99,0.79729382]
[1757001564223,0.72540303,844.58,843.99,0.79729382]
[1757001564424,0.72540303,844.57,843.99,0.79729382]
[1757001564726,0.72540303,844.56,843.99,0.79729382]
[1757001564927,0.72540303,844.55,843.98,0.79729382]
[1757001565127,0.72540303,844.54,843.98,0.79729382]
[1757001565328,0.72540303,844.53,843.99,0.79729382]
[1757001565624,0.72540303,844.52,843.99,0.79729382]
[1757001565827,0.72540303,844.51,843.99,0.7972184]
[1757001566027,0.7983466,844.58,843.99,0.7972184]
[1757001566228,0.72557497,844.57,843.99,0.7972184]
[1757001566629,0.72557497,844.57,843.82,1.0563581]
[1757001566830,0.72557497,844.56,842.65,3.6972534]
[1757001567429,0.72557497,844.54,843.99,0.79718062]
[1757001567629,0.72557497,844.53,843.99,0.79718062]
[1757001567925,0.72557497,844.52,843.99,0.79718062]
[1757001568124,0.72557497,844.51,843.99,0.79718062]
[1757001568324,0.72557497,844.5,843.99,0.79718062]
[1757001568525,0.72557497,844.49,843.99,0.79718062]
[1757001568729,0.72557497,844.48,843.99,0.79718062]
[1757001568930,0.72557497,844.47,843.99,0.79718062]
[1757001569230,0.79834727,844.6,843.99,0.79718062]
[1757001569430,1.5238806,844.59,843.99,0.79718062]
[1757001569630,0.72553333,844.58,843.99,0.79718062]
[1757001570628,0.72553333,844.58,843.98,0.79718062]
[1757001570829,1.5238806,844.57,843.94,0.79718062]
[1757001571128,0.72553333,844.56,843.94,0.79718062]
[1757001572134,1.5238806,844.56,843.94,0.79718062]
[1757001572333,0.72553333,844.55,843.94,0.79718062]
[1757001572633,1.5238806,844.55,843.96,0.79718062]
[1757001572933,0.72553333,844.54,843.96,0.79718062]
[1757001573134,0.72553333,844.54,843.95,0.79718062]
[1757001573331,0.72553333,844.54,843.96,0.79718062]
[1757001574130,0.72553333,844.54,843.95,0.79718062]
[1757001574334,0.72556584,844.53,843.96,0.79718062]
[1757001574633,0.72556584,844.52,843.96,0.79718062]
[1757001574833,0.72556584,844.51,843.96,0.79718062]
[1757001575030,0.72556584,844.5,843.96,0.79718062]
[1757001575234,0.72556584,844.49,843.96,0.79718062]
[1757001575428,0.72556584,844.48,843.96,0.79718062]
[1757001575633,0.72556584,844.47,843.96,0.79718062]
[1757001575833,0.72556584,844.46,843.96,0.79718062]
[1757001576031,0.72556584,844.45,843.96,0.79718062]
[1757001576235,0.72556584,844.44,843.92,0.79718062]
[1757001576534,0.79834727,844.61,843.92,0.79718062]
[1757001576729,0.72557682,844.6,843.92,0.79718062]
[1757001580537,1.52392409,844.6,843.92,0.79718062]
[1757001580732,0.72557682,844.59,843.92,0.79718062]
[1757001581233,0.72557682,844.59,843.93,0.79718062]
[1757001581432,0.72557682,844.59,843.92,0.79718062]
[1757001582234,0.72557682,844.59,843.93,0.79718062]
[1757001586139,0.79834727,844.53,843.97,0.79718062]
[1757001586335,0.72557682,844.52,843.97,0.79718062]
[1757001586740,0.72557682,844.51,843.97,0.79718062]
[1757001587037,0.72557682,844.5,843.97,0.79718062]
[1757001587237,0.72557682,844.49,843.97,0.79718062]
[1757001587437,0.72557682,844.48,843.96,0.79718062]
[1757001587739,0.72557521,844.47,843.96,0.79718062]
[1757001587940,0.72557521,844.46,843.96,0.79718062]
[1757001588138,0.72557521,844.45,843.96,0.79718062]
[1757001588337,0.72557521,844.44,843.96,0.79718062]
[1757001588643,0.72557521,844.43,843.96,0.79718062]
[1757001588842,0.72557521,844.42,843.96,0.79718062]
[1757001589138,0.79834727,844.55,843.96,0.79718062]
[1757001589342,0.72558624,844.54,843.96,0.79718062]
[1757001590442,0.72558624,844.54,843.94,0.79718062]
[1757001590738,0.72558624,844.53,843.94,0.79718062]
[1757001590940,0.72558624,844.52,843.94,0.79718062]
[1757001591140,0.72558624,844.51,843.94,0.79718062]
[1757001591339,0.79834727,844.59,843.95,0.79718062]
[1757001591340,0.72558624,844.5,843.95,0.79718062]
[1757001591540,0.72558624,844.49,843.95,0.79718062]
[1757001591740,0.72558624,844.48,843.95,0.79718062]
[1757001592041,0.72558624,844.47,843.95,0.79718062]
[1757001592240,0.72558624,844.46,843.95,0.79718062]
[1757001592440,0.72558624,844.45,843.95,0.79718062]
[1757001592642,0.72558624,844.44,843.95,0.79718062]
[1757001592842,0.79834727,844.58,843.95,0.79718062]
[1757001593038,0.72559747,844.57,843.95,0.79718062]
[1757001593443,0.72559747,844.57,843.94,0.79718062]
[1757001597240,1.52394474,844.57,843.95,0.79718062]
[1757001597444,0.72559747,844.56,843.95,0.79718062]
[1757001599441,0.79834727,844.55,843.96,0.79718062]
[1757001599742,0.72559747,844.54,843.95,0.79718062]
[1757001599941,0.72559747,844.53,843.95,0.79718062]
[1757001600141,0.72559747,844.53,842.53,3.7201762]
[1757001600942,0.79852057,844.54,843.97,0.79729424]
[1757001601940,0.79852057,844.54,843.81,1.0630589]
[1757001602139,0.79852057,844.54,843.65,1.5945884]
[1757001611447,0.79871772,844.7,844.05,0.79685322]
[1757001611648,0.7256924,844.69,844.05,0.79685322]
[1757001613344,1.52441012,844.69,844.05,0.79685322]
[1757001613648,0.79871772,844.61,844.1,0.79685322]
[1757001613844,0.79871772,844.57,844.07,0.79685322]
[1757001614145,0.7256924,844.56,844.07,0.79685322]
[1757001614546,0.7256924,844.56,844.03,0.79685322]
[1757001614744,0.7256924,844.55,844.02,0.79685322]
[1757001614949,0.7256924,844.54,844.02,0.79685322]
[1757001615245,0.7256924,844.53,844.02,0.79685322]
[1757001615449,0.7256924,844.52,844.02,0.79685322]
[1757001615749,0.7256924,844.51,844.02,0.79685322]
[1757001615949,0.7256924,844.5,843.98,0.79685322]
[1757001616147,0.7256924,844.49,843.98,0.79685322]
[1757001616347,0.7256924,844.48,843.97,0.79685322]
[1757001616546,0.7256924,844.47,843.97,0.79685322]
[1757001616751,0.7256924,844.46,843.97,0.79685322]
[1757001616944,0.7256924,844.45,843.97,0.79685322]
[1757001617148,0.7256924,844.45,843.6,1.5937064]
[1757001617149,0.7256924,844.44,843.96,0.79685322]
[1757001617346,0.7256924,844.43,843.95,0.79685322]
[1757001617546,0.7256924,844.42,843.99,0.79685322]
[1757001617746,0.7256924,844.41,843.99,0.79685322]
[1757001617946,0.7256924,844.4,843.99,0.79685322]
[1757001618152,0.7256924,844.39,843.99,0.79685322]
[1757001618350,0.7256924,844.38,843.99,0.79685322]
[1757001618553,0.79871772,844.55,843.96,0.79685322]
[1757001618851,0.72714084,844.54,843.97,0.79685322]
[1757001619047,0.72714084,844.54,843.96,0.79685322]
[1757001620551,0.72714084,844.53,843.96,0.79685322]
[1757001620855,0.72714084,844.52,843.96,0.79685322]
[1757001621053,0.72714084,844.51,843.96,0.79685322]
[1757001621353,0.72714084,844.5,843.96,0.79685322]
[1757001621551,0.72714084,844.49,843.96,0.79685322]
[1757001621750,0.72714084,844.48,843.95,0.79685322]
[1757001621949,0.72714084,844.47,843.9,0.79685322]
[1757001622153,0.72714084,844.46,843.9,0.79685322]
[1757001622354,0.72714084,844.45,843.9,0.79685322]
[1757001622553,0.72714084,844.44,843.9,0.79685322]
[1757001622756,0.72714084,844.43,843.9,0.79685322]
[1757001623055,0.72714084,844.42,843.9,0.79685322]
[1757001623256,0.72714084,844.41,843.9,0.79685322]
[1757001623454,0.72714084,844.4,843.89,0.79685322]
[1757001623653,0.72714084,844.39,843.91,0.79685322]
[1757001623857,0.72714084,844.38,843.89,0.79685322]
[1757001624057,0.72714084,844.37,843.88,0.79685322]
[1757001624258,0.72714084,844.36,843.88,0.79685322]
[1757001624454,0.72714084,844.35,843.88,0.79685322]
[1757001624657,0.72714084,844.34,843.88,0.79685322]
[1757001624953,0.72714084,844.33,843.88,0.79685322]
[1757001625258,0.72714084,844.32,843.87,0.79685322]
[1757001625453,0.72714084,844.31,843.87,0.79685322]
[1757001625653,0.72714084,844.3,843.87,0.79685322]
[1757001625858,0.72680413,844.29,843.88,0.79685322]